fUSD/lending_fUSD_20251206
["ID","MTS","AMOUNT","RATE_DAILY","PERIOD"]
[396547141,1765045837815,-2176.8412099,0.00015285,2]
[396547142,1765045837827,-10302.97560145,0.00015285,2]
[396547143,1765045837838,-1000.0,0.00015286,2]
[396547144,1765045837848,-1000.0,0.00015359,2]
[396547145,1765045837858,-200.0,0.00015459,2]
[396547146,1765045837867,-354.71358104,0.00015459,2]
[396547147,1765045837878,-168.76,0.00015484,2]
[396547148,1765045837888,-3383.97,0.00015496,2]
[396547149,1765045837898,-150.0,0.00015554,2]
[396547150,1765045837911,-150.0,0.00015756,2]
[396547156,1765045838170,-150.0,0.00015756,2]
[396547157,1765045838189,-150.0,0.00015756,2]
[396547158,1765045838200,-150.0,0.00015756,2]
[396547159,1765045838210,-150.0,0.00015756,2]
[396547160,1765045838220,-150.0,0.00015756,2]
[396547161,1765045838229,-150.0,0.00015756,2]
[396547162,1765045838239,-150.0,0.00015756,2]
[396547163,1765045838248,-2224.71245752,0.00015807,2]
[396547164,1765045838258,-472.0,0.00015816,2]
[396547165,1765045838267,-179.0,0.00015834,2]
[396547166,1765045838276,-932.0,0.00015912,2]
[396547167,1765045838286,-621.0,0.00015918,2]
[396547168,1765045838295,-200.0,0.00015964,2]
[396547169,1765045838304,-151.0,0.00015988,2]
[396547170,1765045838314,-1000.0,0.00015988,2]
[396547171,1765045838324,-151.0,0.00015988,2]
[396547172,1765045838333,-300.0,0.00015988,2]
[396547173,1765045838343,-1259.0,0.00015998,2]
[396547174,1765045838352,-614.0,0.00015998,2]
[396547175,1765045838363,-1195.0,0.00015998,2]
[396547176,1765045838372,-1323.0,0.00015998,2]
[396547177,1765045838382,-253.0,0.00015998,2]
[396547178,1765045838392,-3446.0,0.00015998,2]
[396547179,1765045838402,-1000.0,0.00015998,3]
[396547180,1765045838411,-150.0,0.00015999,2]
[396547181,1765045838421,-289.0,0.00016,2]
[396547182,1765045838431,-150.0,0.00016006,2]
[396547183,1765045838441,-159.0,0.00016021,2]
[396547184,1765045838450,-463.0,0.00016022,2]
[396547185,1765045838460,-1133.0,0.00016042,2]
[396547186,1765045838469,-369.5900239,0.0001607,2]
[396547187,1765045838478,-257.72934496,0.00016099,2]
[396547188,1765045838488,-184.76785143,0.00016099,2]
[396547189,1765045838497,-500.0,0.00016099,2]
[396547190,1765045838507,-594.04512214,0.00016099,2]
[396547191,1765045838516,-754199.61948457,0.000161,2]
[396547192,1765045838554,-5800.38051543,0.000161,2]
[396547193,1765045838564,-374.0,0.0001617,2]
[396547194,1765045838573,-369.59002386,0.00016189,2]
[396547195,1765045838583,-23108.67148147,0.000162,5]
[396547196,1765045838592,-222.56764231,0.00016238,2]
[396547197,1765045838601,-173.5,0.00016248,2]
[396547198,1765045838611,-150.0,0.00016256,2]
[396547199,1765045838620,-1000.0,0.00016285,3]
[396547200,1765045838629,-5244.68372506,0.00016338,2]
[396547201,1765045838639,-31046.3855,0.00016338,2]
[396547202,1765045838648,-205.94,0.00016338,2]
[396547203,1765045838657,-3762.5463,0.00016338,2]
[396547204,1765045838667,-235.463,0.00016338,2]
[396547205,1765045838677,-281.0757,0.00016338,2]
[396547206,1765045838687,-1000.0,0.00016338,2]
[396547207,1765045838696,-2500.0,0.00016338,2]
[396547208,1765045838705,-222.56764231,0.00016338,2]
[396547209,1765045838714,-150.0,0.0001634,2]
[396547210,1765045838724,-5244.68372504,0.000164,2]
[396547211,1765045838735,-751.36378541,0.00016428,2]
[396547212,1765045838744,-151.0,0.00016428,2]
[396547213,1765045838753,-500.0,0.00016428,2]
[396547214,1765045838763,-500.0,0.00016428,2]
[396547215,1765045838773,-500.0,0.00016428,2]
[396547216,1765045838782,-500.0,0.00016428,2]
[396547217,1765045838791,-500.0,0.00016428,2]
[396547218,1765045838801,-500.0,0.00016428,2]
[396547219,1765045838809,-500.0,0.00016428,2]
[396547220,1765045838819,-500.0,0.00016428,2]
[396547221,1765045838828,-500.0,0.00016428,2]
[396547222,1765045838838,-500.0,0.00016428,2]
[396547223,1765045838847,-500.0,0.00016428,2]
[396547224,1765045838856,-500.0,0.00016428,2]
[396547225,1765045838870,-500.0,0.00016428,2]
[396547226,1765045838880,-500.0,0.00016428,2]
[396547227,1765045838889,-500.0,0.00016428,2]
[396547228,1765045838899,-500.0,0.00016428,2]
[396547229,1765045838909,-500.0,0.00016428,2]
[396547230,1765045838918,-500.0,0.00016428,2]
[396547231,1765045838928,-500.0,0.00016428,2]
[396547232,1765045838938,-500.0,0.00016428,2]
[396547233,1765045838948,-500.0,0.00016428,2]
[396547234,1765045838958,-564.57336797,0.00016428,2]
[396547235,1765045838968,-151.0,0.00016428,2]
[396547236,1765045838979,-151.0,0.00016428,2]
[396547237,1765045838989,-151.0,0.00016428,2]
[396547238,1765045838999,-151.0,0.00016428,2]
[396547239,1765045839009,-151.0,0.00016428,2]
[396547240,1765045839019,-151.0,0.00016428,2]
[396547241,1765045839029,-151.0,0.00016428,2]
[396547242,1765045839039,-151.0,0.00016428,2]
[396547243,1765045839049,-151.0,0.00016428,2]
[396547244,1765045839058,-151.0,0.00016428,2]
[396547245,1765045839068,-151.0,0.00016428,2]
[396547246,1765045839078,-151.0,0.00016428,2]
[396547247,1765045839087,-222.48931037,0.00016428,2]
[396547248,1765045839096,-500.0,0.00016437,2]
[396547249,1765045839104,-500.0,0.00016437,2]
[396547250,1765045839115,-500.0,0.00016438,2]
[396547251,1765045839124,-500.0,0.00016438,2]
[396547252,1765045839133,-500.0,0.00016438,2]
[396547253,1765045839143,-500.0,0.00016438,2]
[396547254,1765045839153,-500.0,0.00016438,2]
[396547255,1765045839162,-500.0,0.00016438,2]
[396547256,1765045839171,-500.0,0.00016438,2]
[396547257,1765045839180,-500.0,0.00016438,2]
[396547258,1765045839192,-500.0,0.00016438,2]
[396547259,1765045839202,-646.78501457,0.00016438,2]
[396547260,1765045839211,-500.0,0.00016438,2]
[396547261,1765045839221,-645.49,0.00016438,2]
[396547262,1765045839230,-500.0,0.00016438,2]
[396547263,1765045839239,-500.0,0.00016438,2]
[396547264,1765045839248,-503.0538149,0.00016438,2]
[396547265,1765045839257,-500.0,0.00016438,2]
[396547266,1765045839266,-500.0,0.00016438,2]
[396547267,1765045839275,-500.0,0.00016438,2]
[396547268,1765045839284,-500.0,0.00016438,2]
[396547269,1765045839294,-500.0,0.00016438,2]
[396547270,1765045839303,-500.0,0.00016438,2]
[396547271,1765045839313,-500.0,0.00016438,2]
[396547272,1765045839322,-500.0,0.00016438,2]
[396547273,1765045839331,-500.0,0.00016438,2]
[396547274,1765045839341,-504.48,0.00016438,2]
[396547275,1765045839351,-646.8,0.00016438,2]
[396547276,1765045839360,-500.0,0.00016438,2]
[396547277,1765045839369,-1210.70441421,0.00016438,2]
[396547281,1765045839868,-788.62558579,0.00016438,2]
[396547282,1765045839878,-500.0,0.00016438,2]
[396547283,1765045839887,-500.0,0.00016438,2]
[396547284,1765045839897,-500.0,0.00016438,2]
[396547285,1765045839907,-500.0,0.00016438,2]
[396547286,1765045839916,-500.0,0.00016438,2]
[396547287,1765045839926,-500.0,0.00016438,2]
[396547288,1765045839935,-500.0,0.00016438,2]
[396547289,1765045839944,-500.0,0.00016438,2]
[396547290,1765045839953,-500.0,0.00016438,2]
[396547291,1765045839962,-500.0,0.00016438,2]
[396547292,1765045839972,-500.0,0.00016438,2]
[396547293,1765045839982,-500.0,0.00016438,2]
[396547294,1765045839991,-2519.33,0.00016438,2]
[396547295,1765045840000,-500.0,0.00016438,2]
[396547296,1765045840009,-500.0,0.00016438,2]
[396547297,1765045840018,-500.0,0.00016438,2]
[396547298,1765045840028,-500.0,0.00016438,2]
[396547299,1765045840037,-500.0,0.00016438,2]
[396547300,1765045840046,-500.0,0.00016438,2]
[396547301,1765045840056,-500.0,0.00016438,2]
[396547302,1765045840065,-500.0,0.00016438,2]
[396547303,1765045840075,-500.0,0.00016438,2]
[396547304,1765045840084,-500.0,0.00016438,2]
[396547305,1765045840093,-500.0,0.00016438,2]
[396547306,1765045840103,-500.0,0.00016438,2]
[396547307,1765045840112,-500.0,0.00016438,2]
[396547308,1765045840121,-500.0,0.00016438,2]
[396547309,1765045840130,-500.0,0.00016438,2]
[396547310,1765045840139,-2502.45,0.00016438,2]
[396547311,1765045840148,-2363.34,0.00016438,2]
[396547312,1765045840157,-2292.03,0.00016438,2]
[396547313,1765045840166,-500.0,0.00016438,2]
[396547314,1765045840175,-395.98583053,0.00016438,2]
[396547315,1765045840184,-285.18737421,0.00016438,2]
[396547316,1765045840193,-500.0,0.00016438,2]
[396547317,1765045840202,-258.24453893,0.00016438,2]
[396547318,1765045840211,-500.0,0.00016438,2]
[396547319,1765045840219,-517.39550906,0.00016438,2]
[396547320,1765045840228,-500.0,0.00016438,2]
[396547321,1765045840237,-500.0,0.00016438,2]
[396547323,1765045840247,-150.49,0.00016438,2]
[396547325,1765045840256,-500.0,0.00016438,2]
[396547327,1765045840265,-2576.97,0.00016438,2]
[396547328,1765045840276,-500.0,0.00016438,2]
[396547329,1765045840285,-500.0,0.00016438,2]
[396547330,1765045840293,-500.0,0.00016438,2]
[396547331,1765045840303,-500.0,0.00016438,2]
[396547332,1765045840312,-500.0,0.00016438,2]
[396547333,1765045840321,-502.22300101,0.00016438,2]
[396547334,1765045840330,-500.0,0.00016438,2]
[396547335,1765045840339,-500.0,0.00016438,2]
[396547336,1765045840349,-500.0,0.00016438,2]
[396547337,1765045840359,-500.0,0.00016438,2]
[396547338,1765045840368,-702.46,0.00016438,2]
[396547339,1765045840377,-500.0,0.00016438,2]
[396547340,1765045840386,-1085.48,0.00016438,2]
[396547341,1765045840395,-500.0,0.00016438,2]
[396547342,1765045840404,-500.0,0.00016438,2]
[396547343,1765045840413,-500.0,0.00016438,2]
[396547344,1765045840422,-500.0,0.00016438,2]
[396547345,1765045840436,-500.0,0.00016438,2]
[396547346,1765045840446,-500.0,0.00016438,2]
[396547347,1765045840455,-500.0,0.00016438,2]
[396547348,1765045840465,-500.0,0.00016438,2]
[396547349,1765045840474,-643.78049298,0.00016438,2]
[396547350,1765045840484,-594.84,0.00016438,2]
[396547351,1765045840493,-500.0,0.00016438,2]
[396547352,1765045840503,-500.0,0.00016438,2]
[396547353,1765045840512,-500.0,0.00016438,2]
[396547354,1765045840521,-2257.49,0.00016438,2]
[396547355,1765045840531,-500.0,0.00016438,2]
[396547356,1765045840540,-1026.79,0.00016438,2]
[396547357,1765045840549,-500.0,0.00016438,2]
[396547358,1765045840559,-500.0,0.00016438,2]
[396547359,1765045840568,-500.0,0.00016438,2]
[396547360,1765045840578,-500.0,0.00016438,2]
[396547361,1765045840587,-500.0,0.00016438,2]
[396547362,1765045840596,-500.0,0.00016438,2]
[396547363,1765045840605,-2239.22,0.00016438,2]
[396547364,1765045840614,-500.0,0.00016438,2]
[396547365,1765045840626,-608.83,0.00016438,2]
[396547366,1765045840635,-526.76,0.00016438,2]
[396547367,1765045840644,-500.0,0.00016438,2]
[396547368,1765045840653,-500.0,0.00016438,2]
[396547369,1765045840662,-500.0,0.00016438,2]
[396547370,1765045840671,-500.0,0.00016438,2]
[396547371,1765045840680,-500.0,0.00016438,2]
[396547372,1765045840690,-500.0,0.00016438,2]
[396547373,1765045840699,-500.0,0.00016438,2]
[396547374,1765045840709,-500.0,0.00016438,2]
[396547375,1765045840719,-2265.79,0.00016438,2]
[396547376,1765045840728,-500.0,0.00016438,2]
[396547377,1765045840738,-485.10831085,0.00016438,2]
[396547378,1765045840747,-500.0,0.00016438,2]
[396547379,1765045840757,-500.0,0.00016438,2]
[396547380,1765045840766,-500.0,0.00016438,2]
[396547381,1765045840776,-500.0,0.00016438,2]
[396547382,1765045840785,-2407.43,0.00016438,2]
[396547383,1765045840796,-500.0,0.00016438,2]
[396547384,1765045840805,-500.0,0.00016438,2]
[396547385,1765045840814,-500.0,0.00016438,2]
[396547386,1765045840824,-268.30858635,0.00016438,2]
[396547387,1765045840834,-1940.4,0.00016438,2]
[396547388,1765045840847,-534.38256615,0.00016438,2]
[396547389,1765045840856,-500.0,0.00016438,2]
[396547390,1765045840865,-500.0,0.00016438,2]
[396547391,1765045840875,-501.05384594,0.00016438,2]
[396547392,1765045840887,-500.0,0.00016438,2]
[396547393,1765045840897,-500.0,0.00016438,2]
[396547394,1765045840908,-500.0,0.00016438,2]
[396547395,1765045840918,-501.930503,0.00016438,2]
[396547396,1765045840928,-500.00575724,0.00016438,2]
[396547397,1765045840937,-4041.47,0.00016438,2]
[396547398,1765045840947,-501.43240456,0.00016438,2]
[396547399,1765045840960,-500.0,0.00016438,2]
[396547400,1765045840970,-500.0,0.00016438,2]
[396547401,1765045840979,-500.0,0.00016438,2]
[396547402,1765045840990,-251.7735095,0.00016438,2]
[396547403,1765045840999,-1988.42,0.00016438,2]
[396547404,1765045841009,-500.0,0.00016438,2]
[396547405,1765045841018,-500.0,0.00016438,2]
[396547406,1765045841027,-500.0,0.00016438,2]
[396547407,1765045841036,-500.90911204,0.00016438,2]
[396547408,1765045841045,-501.21437462,0.00016438,2]
[396547409,1765045841054,-500.0,0.00016438,2]
[396547410,1765045841063,-500.0,0.00016438,2]
[396547411,1765045841072,-500.0,0.00016438,2]
[396547412,1765045841081,-1009.07,0.00016438,2]
[396547413,1765045841091,-501.47051862,0.00016438,2]
[396547414,1765045841102,-500.0,0.00016438,2]
[396547415,1765045841112,-500.0,0.00016438,2]
[396547416,1765045841121,-500.0,0.00016438,2]
[396547417,1765045841131,-239.45619131,0.00016438,2]
[396547418,1765045841140,-711.29,0.00016438,2]
[396547419,1765045841149,-533.82691617,0.00016438,2]
[396547420,1765045841159,-500.0,0.00016438,2]
[396547421,1765045841168,-500.0,0.00016438,2]
[396547422,1765045841177,-500.0,0.00016438,2]
[396547423,1765045841186,-510.37888725,0.00016438,2]
[396547424,1765045841196,-500.0,0.00016438,2]
[396547425,1765045841205,-502.12195924,0.00016438,2]
[396547426,1765045841214,-531.04275083,0.00016438,2]
[396547427,1765045841223,-501.31901779,0.00016438,2]
[396547428,1765045841233,-500.0,0.00016438,2]
[396547429,1765045841242,-541.47587758,0.00016438,2]
[396547430,1765045841252,-500.0,0.00016438,2]
[396547431,1765045841261,-500.0,0.00016438,2]
[396547432,1765045841270,-500.39857655,0.00016438,2]
[396547433,1765045841279,-500.0,0.00016438,2]
[396547434,1765045841289,-500.0,0.00016438,2]
[396547435,1765045841298,-500.0,0.00016438,2]
[396547436,1765045841307,-500.0,0.00016438,2]
[396547437,1765045841317,-500.0,0.00016438,2]
[396547438,1765045841327,-602.88095819,0.00016438,2]
[396547439,1765045841336,-500.0,0.00016438,2]
[396547440,1765045841346,-500.0,0.00016438,2]
[396547441,1765045841355,-500.0,0.00016438,2]
[396547442,1765045841365,-500.0,0.00016438,2]
[396547443,1765045841374,-500.0,0.00016438,2]
[396547444,1765045841383,-500.0,0.00016438,2]
[396547445,1765045841393,-501.69789164,0.00016438,2]
[396547446,1765045841402,-500.0,0.00016438,2]
[396547447,1765045841411,-500.0,0.00016438,2]
[396547448,1765045841421,-500.0,0.00016438,2]
[396547450,1765045841433,-500.0,0.00016438,2]
[396547451,1765045841442,-500.0,0.00016438,2]
[396547452,1765045841451,-2977.1,0.00016438,2]
[396547453,1765045841460,-777.41,0.00016438,2]
[396547454,1765045841469,-2303.99,0.00016438,2]
[396547455,1765045841479,-500.0,0.00016438,2]
[396547456,1765045841488,-500.0,0.00016438,2]
[396547457,1765045841497,-553.05,0.00016438,2]
[396547458,1765045841507,-500.0,0.00016438,2]
[396547459,1765045841516,-500.0,0.00016438,2]
[396547460,1765045841525,-500.0,0.00016438,2]
[396547461,1765045841535,-500.0,0.00016438,2]
[396547462,1765045841545,-500.0,0.00016438,2]
[396547463,1765045841555,-4894.45,0.00016438,2]
[396547464,1765045841564,-834.43,0.00016438,2]
[396547465,1765045841573,-500.0,0.00016438,2]
[396547466,1765045841582,-500.0,0.00016438,2]
[396547467,1765045841592,-2751.07,0.00016438,2]
[396547468,1765045841601,-550.15070118,0.00016438,2]
[396547469,1765045841611,-519.47,0.00016438,2]
[396547470,1765045841620,-500.0,0.00016438,2]
[396547471,1765045841631,-500.0,0.00016438,2]
[396547472,1765045841640,-500.0,0.00016438,2]
[396547473,1765045841649,-2158.63,0.00016438,2]
[396547474,1765045841658,-500.0,0.00016438,2]
[396547475,1765045841667,-500.0,0.00016438,2]
[396547476,1765045841677,-500.0,0.00016438,2]
[396547477,1765045841686,-500.0,0.00016438,2]
[396547478,1765045841696,-500.0,0.00016438,2]
[396547479,1765045841705,-500.0,0.00016438,2]
[396547480,1765045841715,-500.0,0.00016438,2]
[396547481,1765045841724,-500.0,0.00016438,2]
[396547482,1765045841734,-2590.26,0.00016438,2]
[396547483,1765045841743,-500.0,0.00016438,2]
[396547484,1765045841751,-2303.12,0.00016438,2]
[396547485,1765045841761,-500.0,0.00016438,2]
[396547486,1765045841770,-2619.69,0.00016438,2]
[396547487,1765045841779,-504.35097321,0.00016438,2]
[396547488,1765045841788,-500.0,0.00016438,2]
[396547489,1765045841798,-2417.93,0.00016438,2]
[396547490,1765045841807,-500.0,0.00016438,2]
[396547491,1765045841816,-500.0,0.00016438,2]
[396547492,1765045841825,-2179.89,0.00016438,2]
[396547493,1765045841835,-500.0,0.00016438,2]
[396547494,1765045841844,-500.0,0.00016438,2]
[396547495,1765045841854,-526.04,0.00016438,2]
[396547496,1765045841863,-500.0,0.00016438,2]
[396547497,1765045841873,-642.95,0.00016438,2]
[396547498,1765045841882,-2196.05,0.00016438,2]
[396547499,1765045841892,-500.0,0.00016438,2]
[396547500,1765045841901,-500.0,0.00016438,2]
[396547501,1765045841910,-537.97589264,0.00016438,2]
[396547502,1765045841920,-500.0,0.00016438,2]
[396547503,1765045841929,-2844.47,0.00016438,2]
[396547504,1765045841939,-500.0,0.00016438,2]
[396547505,1765045841948,-500.0,0.00016438,2]
[396547506,1765045841957,-633.39,0.00016438,2]
[396547507,1765045841966,-500.0,0.00016438,2]
[396547508,1765045841976,-500.0,0.00016438,2]
[396547509,1765045841986,-500.0,0.00016438,2]
[396547510,1765045841995,-500.0,0.00016438,2]
[396547511,1765045842004,-500.0,0.00016438,2]
[396547513,1765045842013,-500.0,0.00016438,2]
[396547515,1765045842022,-500.0,0.00016438,2]
[396547517,1765045842032,-500.0,0.00016438,2]
[396547519,1765045842041,-500.0,0.00016438,2]
[396547521,1765045842050,-500.0,0.00016438,2]
[396547523,1765045842059,-500.0,0.00016438,2]
[396547525,1765045842068,-500.0,0.00016438,2]
[396547527,1765045842077,-500.0,0.00016438,2]
[396547529,1765045842086,-2426.8,0.00016438,2]
[396547534,1765045842319,-794.76,0.00016438,2]
[396547535,1765045842330,-2586.49,0.00016438,2]
[396547536,1765045842340,-2488.24,0.00016438,2]
[396547537,1765045842350,-2349.96,0.00016438,2]
[396547538,1765045842359,-1097.88,0.00016438,2]
[396547539,1765045842369,-1918.43,0.00016438,2]
[396547540,1765045842378,-1172.05,0.00016438,2]
[396547541,1765045842388,-899.64,0.00016438,2]
[396547542,1765045842398,-665.62,0.00016438,2]
[396547543,1765045842407,-643.81,0.00016438,2]
[396547544,1765045842417,-735.69,0.00016438,2]
[396547545,1765045842427,-500.0,0.00016438,2]
[396547546,1765045842436,-1376.26,0.00016438,2]
[396547547,1765045842446,-500.0,0.00016438,2]
[396547548,1765045842455,-1474.63,0.00016438,2]
[396547549,1765045842465,-500.0,0.00016438,2]
[396547550,1765045842474,-2341.2,0.00016438,2]
[396547551,1765045842484,-500.0,0.00016438,2]
[396547552,1765045842493,-500.0,0.00016438,2]
[396547553,1765045842503,-616.01638256,0.00016438,2]
[396547554,1765045842513,-500.0,0.00016438,2]
[396547555,1765045842522,-1294.18,0.00016438,2]
[396547557,1765045842532,-4017.47,0.00016438,2]
[396547558,1765045842542,-554.89,0.00016438,2]
[396547559,1765045842551,-500.0,0.00016438,2]
[396547560,1765045842560,-1336.44,0.00016438,2]
[396547561,1765045842570,-500.0,0.00016438,2]
[396547562,1765045842580,-2592.69,0.00016438,2]
[396547563,1765045842590,-1258.71,0.00016438,2]
[396547564,1765045842599,-678.09,0.00016438,2]
[396547566,1765045842609,-500.0,0.00016438,2]
[396547569,1765045842618,-500.0,0.00016438,2]
[396547570,1765045842627,-500.0,0.00016438,2]
[396547571,1765045842636,-2066.0,0.00016438,2]
[396547572,1765045842645,-500.0,0.00016438,2]
[396547573,1765045842654,-502.41530525,0.00016438,2]
[396547574,1765045842663,-500.0,0.00016438,2]
[396547575,1765045842673,-514.46,0.00016438,2]
[396547576,1765045842683,-8259.23,0.00016438,2]
[396547577,1765045842693,-500.0,0.00016438,2]
[396547578,1765045842703,-2280.79,0.00016438,2]
[396547579,1765045842712,-500.0,0.00016438,2]
[396547580,1765045842722,-2557.91,0.00016438,2]
[396547581,1765045842731,-500.0,0.00016438,2]
[396547582,1765045842740,-500.0,0.00016438,2]
[396547583,1765045842751,-500.0,0.00016438,2]
[396547584,1765045842761,-5031.82,0.00016438,2]
[396547587,1765045842771,-500.0,0.00016438,2]
[396547589,1765045842780,-500.0,0.00016438,2]
[396547591,1765045842789,-500.0,0.00016438,2]
[396547593,1765045842799,-500.0,0.00016438,2]
[396547595,1765045842809,-500.0,0.00016438,2]
[396547597,1765045842818,-500.0,0.00016438,2]
[396547601,1765045842828,-945.76,0.00016438,2]
[396547602,1765045842837,-532.94,0.00016438,2]
[396547605,1765045842846,-500.0,0.00016438,2]
[396547608,1765045842855,-649.46459307,0.00016438,2]
[396547611,1765045842865,-500.0,0.00016438,2]
[396547614,1765045842874,-500.0,0.00016438,2]
[396547616,1765045842883,-500.0,0.00016438,2]
[396547618,1765045842892,-748.18,0.00016438,2]
[396547620,1765045842902,-2497.7,0.00016438,2]
[396547622,1765045842911,-2642.38,0.00016438,2]
[396547624,1765045842920,-7543.37,0.00016438,2]
[396547627,1765045842932,-1162.66,0.00016438,2]
[396547628,1765045842942,-558.59,0.00016438,2]
[396547630,1765045842951,-500.0,0.00016438,2]
[396547632,1765045842960,-512.28974765,0.00016438,2]
[396547634,1765045842970,-500.0,0.00016438,2]
[396547636,1765045842980,-500.0,0.00016438,2]
[396547638,1765045842989,-599.45,0.00016438,2]
[396547639,1765045842998,-500.0,0.00016438,2]
[396547640,1765045843007,-500.0,0.00016438,2]
[396547641,1765045843017,-2612.51,0.00016438,2]
[396547642,1765045843026,-2334.95,0.00016438,2]
[396547643,1765045843036,-571.82,0.00016438,2]
[396547644,1765045843045,-2822.45,0.00016438,2]
[396547645,1765045843054,-500.0,0.00016438,2]
[396547646,1765045843064,-2467.92,0.00016438,2]
[396547647,1765045843082,-500.0,0.00016438,2]
[396547648,1765045843093,-2431.19,0.00016438,2]
[396547649,1765045843104,-2478.55,0.00016438,2]
[396547650,1765045843115,-681.79,0.00016438,2]
[396547651,1765045843124,-1103.83,0.00016438,2]
[396547652,1765045843134,-613.69,0.00016438,2]
[396547653,1765045843144,-500.0,0.00016438,2]
[396547654,1765045843154,-623.02,0.00016438,2]
[396547655,1765045843164,-500.0,0.00016438,2]
[396547656,1765045843175,-2689.57,0.00016438,2]
[396547657,1765045843185,-534.26,0.00016438,2]
[396547658,1765045843195,-9053.72,0.00016438,2]
[396547659,1765045843205,-717.72,0.00016438,2]
[396547660,1765045843215,-500.0,0.00016438,2]
[396547661,1765045843225,-500.0,0.00016438,2]
[396547662,1765045843235,-2340.17,0.00016438,2]
[396547663,1765045843244,-1084.31,0.00016438,2]
[396547664,1765045843255,-500.0,0.00016438,2]
[396547665,1765045843264,-500.0,0.00016438,2]
[396547666,1765045843274,-500.0,0.00016438,2]
[396547667,1765045843284,-500.0,0.00016438,2]
[396547668,1765045843294,-550.51,0.00016438,2]
[396547669,1765045843305,-500.0,0.00016438,2]
[396547670,1765045843315,-1891.66,0.00016438,2]
[396547671,1765045843325,-1415.86,0.00016438,2]
[396547672,1765045843335,-2184.32,0.00016438,2]
[396547673,1765045843345,-2473.05,0.00016438,2]
[396547674,1765045843355,-894.26,0.00016438,2]
[396547675,1765045843364,-500.0,0.00016438,2]
[396547676,1765045843374,-2585.4,0.00016438,2]
[396547677,1765045843384,-500.0,0.00016438,2]
[396547678,1765045843393,-2689.95,0.00016438,2]
[396547679,1765045843403,-591.58,0.00016438,2]
[396547680,1765045843412,-2625.08,0.00016438,2]
[396547681,1765045843424,-822.61,0.00016438,2]
[396547682,1765045843436,-500.0,0.00016438,2]
[396547683,1765045843446,-500.0,0.00016438,2]
[396547684,1765045843455,-2437.41,0.00016438,2]
[396547685,1765045843465,-500.0,0.00016438,2]
[396547686,1765045843475,-2070.38,0.00016438,2]
[396547687,1765045843485,-595.69,0.00016438,2]
[396547688,1765045843495,-2466.25,0.00016438,2]
[396547689,1765045843505,-3042.01,0.00016438,2]
[396547690,1765045843514,-9486.49,0.00016438,2]
[396547691,1765045843524,-692.96,0.00016438,2]
[396547692,1765045843533,-723.38,0.00016438,2]
[396547693,1765045843543,-2748.78,0.00016438,2]
[396547694,1765045843552,-500.0,0.00016438,2]
[396547695,1765045843562,-2605.43,0.00016438,2]
[396547696,1765045843576,-500.0,0.00016438,2]
[396547697,1765045843586,-3046.73,0.00016438,2]
[396547698,1765045843596,-2122.53,0.00016438,2]
[396547699,1765045843606,-526.77,0.00016438,2]